bitfinex-derivatives/quotes_SOLF0:USTF0_20220110
["timestamp","ask_amount","ask_price","bid_price","bid_amount"]
[1641784181416,55.03747038,140.38,140.3,35.2717]
[1641784181617,4.0,140.37,140.3,35.2717]
[1641784181817,55.03747038,140.38,140.3,35.2717]
[1641784182017,4.0,140.37,140.3,35.2717]
[1641784182216,4.0,140.34,140.31,2.111426]
[1641784182617,4.03719282,140.33,140.31,2.45209772]
[1641784183216,31.70198282,140.34,140.32,2.111426]
[1641784183420,35.70198282,140.34,140.32,2.111426]
[1641784183619,4.03719282,140.33,140.32,2.111426]
[1641784185923,4.03719282,140.34,140.32,2.111426]
[1641784186722,27.66479,140.33,140.32,2.111426]
[1641784186922,27.66479,140.34,140.32,2.111426]
[1641784187122,4.03719282,140.33,140.32,2.111426]
[1641784188526,4.03719282,140.35,140.32,2.111426]
[1641784188824,4.03719282,140.35,140.32,10.088426]
[1641784189424,4.03719282,140.35,140.33,2.111426]
[1641784192427,4.03719282,140.35,140.32,2.111426]
[1641784193031,4.03719282,140.35,140.33,4.0]
[1641784193229,34.50314513,140.39,140.33,12.156]
[1641784193429,6.83835513,140.39,140.33,12.156]
[1641784194432,4.03769791,140.38,140.34,2.22038051]
[1641784194833,4.03769791,140.38,140.34,4.6721415]
[1641784195033,4.03769791,140.38,140.34,32.3369315]
[1641784195235,4.03769791,140.38,140.35,2.22038051]
[1641784197137,4.03769791,140.38,140.33,29.88517051]
[1641784197536,4.03769791,140.38,140.34,2.22038051]
[1641784197738,4.03769791,140.38,140.34,4.67270212]
[1641784198437,4.03769791,140.38,140.35,2.22038051]
[1641784198638,4.03769791,140.38,140.35,4.67270212]
[1641784199339,4.03769791,140.38,140.36,2.22038051]
[1641784199739,4.03769791,140.38,140.34,2.22038051]
[1641784200642,5.69811799,140.4,140.34,2.22038051]
[1641784200843,5.69811799,140.4,140.34,34.47878051]
[1641784201045,4.03769791,140.39,140.34,62.14357051]
[1641784201645,4.03769791,140.39,140.35,2.22038051]
[1641784201845,4.03769791,140.39,140.35,6.22038051]
[1641784202148,42.73733968,140.43,140.36,2.22038051]
[1641784202445,27.66479,140.43,140.36,15.74838051]
[1641784202646,21.90833814,140.44,140.36,15.74838051]
[1641784202845,21.90833814,140.44,140.37,4.0]
[1641784203048,21.90833814,140.44,140.37,27.66479]
[1641784203346,6.83578846,140.44,140.37,31.66479]
[1641784203547,4.03690526,140.43,140.38,3.83495514]
[1641784211054,4.03690526,140.43,140.38,7.83495514]
[1641784211256,4.03690526,140.43,140.38,35.49974514]
[1641784211955,4.03690526,140.43,140.39,3.83495514]
[1641784212161,4.03690526,140.43,140.39,12.56695514]
[1641784212759,4.03690526,140.43,140.4,3.83495514]
[1641784215262,4.03690526,140.43,140.37,3.83495514]
[1641784215462,5.69735048,140.42,140.37,3.83495514]
[1641784215862,4.03690526,140.41,140.37,3.83495514]
[1641784216163,4.03690526,140.4,140.37,3.83495514]
[1641784216663,5.69735048,140.42,140.37,3.83495514]
[1641784217063,3.83529256,140.41,140.36,3.83495514]
[1641784217266,3.83529256,140.41,140.36,31.49974514]
[1641784217765,3.83529256,140.41,140.37,3.83495514]
[1641784218063,3.83529256,140.41,140.37,6.28398952]
[1641784218564,3.83529256,140.41,140.38,3.83495514]
[1641784223271,31.50008256,140.41,140.38,3.83495514]
[1641784223572,4.0,140.4,140.38,3.83495514]
[1641784223771,13.18823785,140.4,140.38,3.83495514]
[1641784223969,3.83529256,140.39,140.38,3.83495514]
[1641784224372,3.83529256,140.39,140.37,2.44903438]
[1641784224670,6.4117581,140.39,140.37,2.44903438]
[1641784225074,3.83529256,140.38,140.37,2.44903438]
[1641784225271,31.50008256,140.38,140.37,2.44903438]
[1641784225671,31.50008256,140.38,140.37,6.4872581]
[1641784225870,3.83529256,140.38,140.37,6.4872581]
[1641784226671,3.83529256,140.39,140.37,6.4872581]
[1641784227072,3.83529256,140.39,140.37,2.44903438]
[1641784228172,3.83529256,140.39,140.37,8.18503438]
[1641784228672,3.83529256,140.39,140.38,4.03795387]
[1641784229173,3.83529256,140.39,140.37,8.18503438]
[1641784229773,9.53394126,140.39,140.37,8.18503438]
[1641784230173,3.83529256,140.38,140.37,8.18503438]
[1641784230475,3.83529256,140.38,140.37,12.22307]
[1641784233175,3.83529256,140.4,140.37,12.22307]
[1641784233576,3.83529256,140.4,140.38,4.03803562]
[1641784233977,3.83529256,140.41,140.38,4.03803562]
[1641784239187,3.83529256,140.41,140.39,4.0]
[1641784239386,3.83529256,140.41,140.38,4.03803562]
[1641784239586,3.83529256,140.41,140.4,4.03803562]
[1641784239786,3.83529256,140.41,140.4,10.20003562]
[1641784240087,3.83529256,140.42,140.4,6.162]
[1641784240485,3.83529256,140.43,140.41,4.03803562]
[1641784243688,9.53243233,140.43,140.41,4.03803562]
[1641784243888,37.19722233,140.43,140.37,4.22903438]
[1641784244088,37.19722233,140.43,140.37,2.44903438]
[1641784244387,3.83529256,140.42,140.38,4.03723791]
[1641784244587,6.4099504,140.42,140.38,4.03723791]
[1641784245289,3.83529256,140.41,140.38,4.03723791]
[1641784252196,3.83529256,140.41,140.38,8.03723791]
[1641784252496,3.83529256,140.41,140.4,31.66479]
[1641784252695,2.57465784,140.42,140.4,39.74679]
[1641784252896,2.57465784,140.42,140.4,35.74679]
[1641784253297,2.57465784,140.42,140.4,38.20019443]
[1641784253998,2.57465784,140.42,140.41,4.03596398]
[1641784258700,6.02594111,140.42,140.41,4.03596398]
[1641784260099,6.02594111,140.42,140.41,8.03596398]
[1641784260502,15.08506582,140.45,140.41,8.03596398]
[1641784261102,15.08506582,140.45,140.42,4.0]
[1641784262002,15.08506582,140.45,140.43,4.0]
[1641784262205,15.08506582,140.45,140.43,17.25238314]
[1641784262605,27.66479,140.5,140.44,4.03538314]
[1641784262807,27.66479,140.5,140.44,39.41508314]
[1641784263005,2.33856717,140.49,140.44,39.41508314]
[1641784263209,2.33856717,140.49,140.44,37.63708314]
[1641784263406,2.33856717,140.49,140.45,4.03538314]
[1641784265106,8.03313084,140.49,140.45,4.03538314]
[1641784265507,5.69534844,140.47,140.42,4.03538314]
[1641784266110,2.33856717,140.46,140.42,4.03538314]
[1641784266308,11.51756717,140.46,140.42,4.03538314]
[1641784266508,31.66479,140.45,140.42,4.03538314]
[1641784266809,5.69675265,140.44,140.42,4.03538314]
[1641784267209,2.33856717,140.43,140.41,4.03538314]
[1641784267610,2.33856717,140.42,140.41,4.03538314]
[1641784269916,2.33856717,140.42,140.37,4.03538314]
[1641784270414,2.33856717,140.41,140.37,4.03538314]
[1641784270915,5.69675265,140.44,140.37,4.03538314]
[1641784271114,5.69675265,140.44,140.37,11.32038314]
[1641784271314,1.64927947,140.43,140.37,11.32038314]
[1641784271715,1.64927947,140.43,140.38,4.03538314]
[1641784271914,1.64927947,140.43,140.4,4.0]
[1641784272115,27.66479,140.46,140.4,10.656]
[1641784272315,27.66479,140.46,140.41,4.0]
[1641784272516,1.64869323,140.45,140.41,4.03538314]
[1641784274617,7.34495011,140.45,140.41,4.03538314]
[1641784274817,7.34495011,140.45,140.37,4.03538314]
[1641784275217,1.64869323,140.44,140.37,4.03538314]
[1641784278526,29.31348323,140.44,140.37,4.03538314]
[1641784279225,1.64869323,140.43,140.37,4.03538314]
[1641784284435,7.34574122,140.43,140.37,4.03538314]
[1641784284632,27.66479,140.41,140.37,4.03538314]
[1641784284832,33.36261895,140.41,140.37,4.03538314]
[1641784285034,5.69861529,140.39,140.37,4.03538314]
[1641784285533,9.69861529,140.39,140.37,4.03538314]
[1641784285733,1.64869323,140.38,140.34,4.03538314]
[1641784286133,1.64869323,140.38,140.32,4.03538314]
[1641784286536,27.66479,140.37,140.32,4.03538314]
[1641784287135,1.64869323,140.36,140.32,4.03538314]
[1641784289940,1.64869323,140.36,140.32,8.03538314]
[1641784290540,1.64869323,140.36,140.33,4.03538314]
[1641784290738,1.64869323,140.36,140.33,9.74638314]
[1641784291140,5.69861529,140.39,140.33,9.74638314]
[1641784291539,1.65049206,140.38,140.34,4.03538314]
[1641784294644,1.65049206,140.38,140.32,8.03538314]
[1641784294843,29.31528206,140.38,140.32,8.03538314]
[1641784295144,1.65049206,140.37,140.33,4.03538314]
[1641784295546,1.65049206,140.37,140.33,8.03538314]
[1641784296148,1.65049206,140.37,140.34,8.03538314]
[1641784296448,1.65049206,140.39,140.35,4.03538314]
[1641784296847,1.65049206,140.39,140.35,8.03538314]
[1641784297048,1.65049206,140.39,140.35,4.03538314]
[1641784297649,1.65049206,140.39,140.35,8.03538314]
[1641784298347,1.65049206,140.39,140.36,4.03538314]
[1641784303350,1.65049206,140.41,140.36,4.03538314]
[1641784303552,1.65049206,140.41,140.36,8.03538314]
[1641784303951,1.65049206,140.41,140.37,2.45415617]
[1641784304150,1.65049206,140.41,140.37,12.53553931]
[1641784304550,1.65049206,140.42,140.38,4.03538314]
[1641784304750,1.65049206,140.42,140.38,38.97578314]
[1641784305351,1.65049206,140.42,140.39,4.03538314]
[1641784309056,9.206e-05,140.42,140.39,4.03538314]
[1641784309258,27.66479,140.46,140.4,29.44479]
[1641784309458,27.66479,140.46,140.4,37.18179]
[1641784309763,27.66479,140.46,140.4,9.517]
[1641784309957,27.66479,140.46,140.4,7.737]
[1641784310458,1.15364188,140.45,140.41,4.03659286]
[1641784311660,1.15364188,140.45,140.41,5.81659286]
[1641784312361,1.15364188,140.45,140.42,4.03659286]
[1641784315362,12.27564174,140.45,140.4,4.03659286]
[1641784315763,2.57115353,140.44,140.4,4.03659286]
[1641784315962,3.72479541,140.44,140.38,4.03659286]
[1641784316364,1.15364188,140.43,140.38,4.03659286]
[1641784322676,1.15364188,140.43,140.39,2.45395772]
[1641784323077,1.15364188,140.43,140.4,4.03659286]
[1641784324278,4.188e-05,140.43,140.4,4.03659286]
[1641784324478,4.188e-05,140.43,140.39,4.03659286]
[1641784324678,4.188e-05,140.43,140.4,1.78]
[1641784325481,4.188e-05,140.43,140.39,29.44479]
[1641784325681,4.188e-05,140.43,140.41,4.03662174]
[1641784325883,4.188e-05,140.43,140.41,11.22862174]
[1641784326181,4.188e-05,140.43,140.41,7.192]
[1641784326583,4.188e-05,140.43,140.42,4.03662174]
[1641784327381,4.188e-05,140.43,140.41,4.03662174]
[1641784331989,2.57115353,140.44,140.42,4.0]
[1641784332286,2.57115353,140.44,140.43,4.0]
[1641784332487,2.57115353,140.44,140.43,8.03662174]
[1641784332688,15.0823115,140.48,140.43,8.03662174]
[1641784332888,15.0823115,140.48,140.43,45.07819481]
[1641784333087,0.80776637,140.47,140.44,4.03662174]
[1641784333895,0.80776637,140.47,140.46,4.0]
[1641784334092,40.27583508,140.52,140.46,11.292]
[1641784334290,40.27583508,140.52,140.47,4.0]
[1641784334494,60.28436074,140.54,140.47,5.778]
[1641784334692,60.28436074,140.54,140.48,4.0]
[1641784335094,60.28436074,140.54,140.49,4.0]
[1641784335295,0.80683232,140.53,140.49,13.34616162]
[1641784335495,0.80683232,140.53,140.49,15.12416162]
[1641784335695,0.80683232,140.53,140.5,4.03416162]
[1641784338798,0.80683232,140.55,140.49,4.03416162]
[1641784339201,0.80683232,140.55,140.49,11.93216162]
[1641784339603,0.80683232,140.55,140.5,4.03416162]
[1641784346209,0.80683232,140.55,140.49,4.03416162]
[1641784350113,28.47162232,140.55,140.49,4.03416162]
[1641784350413,0.80683232,140.54,140.49,4.03416162]
[1641784351217,0.80683232,140.54,140.49,8.03416162]
[1641784351813,0.80683232,140.54,140.5,4.03416162]
[1641784352114,0.80683232,140.54,140.5,10.29916162]
[1641784352414,0.80683232,140.54,140.5,6.265]
[1641784352614,0.80683232,140.54,140.51,4.03416162]
[1641784356619,0.80683232,140.56,140.51,39.31316162]
[1641784356819,27.66479,140.55,140.51,39.31316162]
[1641784357219,0.80683232,140.54,140.52,4.03416162]
[1641784357818,6.49942751,140.54,140.52,4.03416162]
[1641784358018,6.49942751,140.54,140.49,4.03416162]
[1641784358420,0.80683232,140.53,140.49,4.03416162]
[1641784358823,27.66479,140.52,140.46,4.03416162]
[1641784359322,0.80683232,140.51,140.46,4.03416162]
[1641784363425,0.80683232,140.51,140.46,8.03416162]
[1641784364027,0.80683232,140.51,140.47,4.03416162]
[1641784364226,0.80683232,140.51,140.47,12.65316162]
[1641784365028,0.80683232,140.53,140.48,4.03416162]
[1641784365630,0.80683232,140.54,140.48,4.03416162]
[1641784369435,0.80683232,140.54,140.48,8.03416162]
[1641784369837,0.80683232,140.54,140.49,4.03416162]
[1641784370238,0.80683232,140.54,140.49,8.03416162]
[1641784370737,0.80683232,140.54,140.5,4.03416162]
[1641784370939,0.80683232,140.54,140.5,12.96716162]
[1641784371639,0.80683232,140.54,140.51,4.03416162]
[1641784377149,50.64129331,140.56,140.51,4.03416162]
[1641784377150,0.80683232,140.55,140.51,4.03416162]
[1641784379054,0.80683232,140.55,140.51,8.03416162]
[1641784379254,0.80683232,140.55,140.52,31.66479]
[1641784379453,0.80683232,140.55,140.52,33.47695162]
[1641784379855,0.80683232,140.55,140.53,2.45788142]
[1641784380056,0.80683232,140.55,140.53,15.36904304]
[1641784380455,0.80683232,140.55,140.54,4.03416162]
[1641784380856,15.09809331,140.56,140.54,4.03416162]
[1641784381460,0.80660952,140.55,140.54,4.03416162]
[1641784384164,15.09809331,140.56,140.54,4.03416162]
[1641784384361,61.67889,140.6,140.54,4.03416162]
[1641784384561,61.67889,140.6,140.54,37.75886162]
[1641784384562,27.66479,140.6,140.54,37.75886162]
[1641784385162,0.80657979,140.59,140.55,4.03416162]
[1641784386363,4.80657979,140.59,140.55,4.03416162]
[1641784386763,0.80657979,140.59,140.55,4.03416162]
[1641784386967,0.80657979,140.58,140.53,4.03416162]
[1641784388067,5.69551312,140.47,140.39,60.38972605]
[1641784388266,4.0,140.46,140.39,60.38972605]
[1641784388665,14.05851312,140.47,140.39,60.38972605]
[1641784388666,9.69606748,140.45,140.39,60.38972605]
[1641784388865,5.69606748,140.45,140.39,60.38972605]
[1641784389268,5.69606748,140.45,140.4,2.45173337]
[1641784389468,0.8072409,140.44,140.4,6.48793787]
[1641784389667,27.66479,140.41,140.4,6.48793787]
[1641784389867,27.66479,140.41,140.39,60.38972605]
[1641784390871,27.66479,140.41,140.4,2.45174011]
[1641784391370,27.66479,140.41,140.39,60.38972605]
[1641784394673,4.0,140.46,140.39,60.38972605]
[1641784394873,4.0,140.46,140.39,9.017]
[1641784395074,1.77699053,140.45,140.39,9.017]
[1641784395773,1.77699053,140.45,140.39,36.68179]
[1641784396677,1.77699053,140.45,140.39,9.017]
[1641784398378,1.77699053,140.45,140.38,27.66479]
[1641784401380,1.77699053,140.45,140.42,4.0]
[1641784401582,5.69468612,140.49,140.43,4.0]
[1641784401782,5.69468612,140.49,140.44,5.778]
[1641784401981,5.69335023,140.52,140.47,27.66479]
[1641784402180,5.69366548,140.51,140.47,34.88179]
[1641784402781,1.24180451,140.5,140.47,34.88179]
[1641784404386,1.24180451,140.5,140.47,7.217]
[1641784404786,6.93598333,140.5,140.41,1.778]
[1641784404986,6.93598333,140.5,140.4,36.3203]
[1641784405285,1.24180451,140.49,140.42,4.0353233]
[1641784405485,5.24180451,140.49,140.42,4.0353233]
[1641784405686,5.69503884,140.48,140.42,4.0353233]
[1641784406387,1.24180451,140.47,140.42,4.0353233]
[1641784406788,1.24180451,140.47,140.41,4.0353233]
[1641784406991,6.93725752,140.47,140.41,4.0353233]
[1641784407687,1.24180451,140.46,140.41,4.0353233]
[1641784408088,9.69625741,140.45,140.41,4.0353233]
[1641784408489,1.24180451,140.44,140.41,4.0353233]
[1641784408788,1.24180451,140.44,140.4,4.0353233]
[1641784409689,8.97480451,140.44,140.4,4.0353233]
[1641784410291,1.24180451,140.43,140.4,4.0353233]
[1641784410891,5.24180451,140.43,140.4,4.0353233]
[1641784411093,4.0,140.42,140.4,4.0353233]
[1641784411693,6.93975701,140.41,140.4,4.0353233]
[1641784411994,10.93975701,140.41,140.4,4.0353233]
[1641784412994,10.93975701,140.41,140.39,9.48316446]
[1641784413195,5.69879309,140.39,140.34,32.3607]
[1641784414295,27.66479,140.38,140.34,32.3607]
[1641784414498,32.90873807,140.38,140.35,4.03807813]
[1641784414899,31.66479,140.38,140.35,4.03807813]
[1641784415097,27.66479,140.38,140.35,4.03807813]
[1641784420702,2.45441119,140.37,140.35,4.03807813]
[1641784421503,5.69879309,140.39,140.34,4.03807813]
[1641784422104,2.45418777,140.38,140.34,4.03807813]
[1641784424206,34.50189007,140.42,140.34,4.03807813]
[1641784424406,34.50189007,140.42,140.35,1.78]
[1641784424806,2.45374833,140.41,140.35,1.78]
[1641784425106,2.45374833,140.41,140.36,4.03807813]
[1641784425306,2.45374833,140.41,140.36,10.89607813]
[1641784426006,2.45374833,140.41,140.37,4.03807813]
[1641784428210,2.45374833,140.41,140.34,4.03807813]
[1641784429012,2.45374833,140.41,140.35,4.0]
[1641784429213,2.45374833,140.41,140.35,9.82]
[1641784429415,2.45374833,140.41,140.35,12.26600696]
[1641784429613,2.45374833,140.41,140.36,8.03807813]
[1641784429814,2.45374833,140.41,140.38,4.0]
[1641784430015,6.83607639,140.44,140.38,10.833]
[1641784430217,27.66479,140.45,140.38,10.833]
[1641784430417,2.45317669,140.43,140.39,5.81807813]
[1641784431019,2.45317669,140.44,140.4,4.03807813]
[1641784431818,2.45317669,140.44,140.39,4.03807813]
[1641784433120,2.45317669,140.45,140.39,27.66479]
[1641784433525,2.45317669,140.45,140.4,4.03807813]
[1641784435326,5.69921244,140.38,140.35,8.85900696]
[1641784435529,4.0,140.36,140.35,8.85900696]
[1641784436526,7.66573192,140.36,140.35,12.89745977]
[1641784437327,35.33052192,140.36,140.35,12.89745977]
[1641784437831,31.66479,140.36,140.35,12.89745977]
[1641784438328,35.33034017,140.36,140.35,12.89745977]
[1641784439531,31.66479,140.36,140.35,12.89745977]
[1641784440935,41.18542808,140.36,140.35,12.89745977]
[1641784441133,46.88539053,140.36,140.35,5.977e-05]
[1641784441936,46.88539053,140.36,140.32,100.14182721]
[1641784442337,3.66563808,140.35,140.33,3.20036289]
[1641784443245,37.03049151,140.35,140.33,3.20036289]
[1641784443640,3.66563808,140.34,140.33,3.20036289]
[1641784453759,33.36485343,140.35,140.33,3.20036289]
[1641784453959,33.36485343,140.35,140.33,9.88736289]
[1641784454361,33.36485343,140.35,140.34,3.20036289]
[1641784454760,37.4033655,140.35,140.34,3.20036289]
[1641784458566,31.70330207,140.35,140.34,3.20036289]
[1641784458767,27.66479,140.36,140.34,3.20036289]
[1641784459366,27.66479,140.39,140.34,3.20036289]
[1641784459766,4.03770279,140.38,140.34,3.20036289]
[1641784463270,8.03770279,140.38,140.34,3.20036289]
[1641784463472,27.66479,140.36,140.34,3.20036289]
[1641784463871,4.03770279,140.35,140.34,3.20036289]
[1641784464271,4.03770279,140.35,140.33,3.20036289]
[1641784466476,27.66479,140.36,140.33,3.20036289]
[1641784466875,4.03841203,140.35,140.33,3.20036289]
[1641784467275,27.66479,140.36,140.33,3.20036289]
[1641784467477,27.66479,140.36,140.33,10.41536289]
[1641784468177,27.66479,140.36,140.34,3.20036289]
[1641784473987,4.0385428,140.35,140.34,3.20036289]
[1641784475690,4.0385428,140.35,140.33,3.20036289]
[1641784477196,4.0,140.34,140.27,34.46235848]
[1641784477394,11.1306332,140.28,140.27,28.46235848]
[1641784477594,75.2052132,140.28,140.23,60.24914622]
[1641784477794,4.0,140.26,140.23,60.24914622]
[1641784478397,4.0,140.24,140.23,60.24914622]
[1641784478798,4.0,140.25,140.23,2.40925185]
[1641784479197,8.04174829,140.24,140.2,2.40925185]
[1641784479399,4.04174829,140.24,140.2,2.40925185]
[1641784479598,27.66479,140.22,140.19,2.40925185]
[1641784480499,27.66479,140.22,140.18,2.40925185]
[1641784482200,27.66479,140.22,140.19,2.44510061]
[1641784482502,4.0,140.26,140.19,9.91110061]
[1641784482901,4.0,140.26,140.2,6.40925185]
[1641784483104,4.0,140.27,140.2,2.40925185]
[1641784483501,4.0,140.27,140.21,2.40925185]
[1641784483701,4.0,140.27,140.21,4.85435246]
[1641784483901,4.0,140.27,140.21,2.44510061]
[1641784484302,4.0,140.27,140.22,2.40925185]
[1641784484503,4.0,140.27,140.22,11.77225185]
[1641784484702,4.04108301,140.26,140.22,11.77225185]
[1641784485306,4.04108301,140.26,140.23,2.40925185]
[1641784486203,4.04108301,140.26,140.22,11.40025185]
[1641784486603,4.04108301,140.26,140.23,2.40925185]
[1641784487004,4.0,140.27,140.23,8.66025185]
[1641784487405,65.03252897,140.28,140.23,8.66025185]
[1641784487607,61.03252897,140.28,140.24,2.40925185]
[1641784487905,4.04112047,140.27,140.24,2.40925185]
[1641784490112,4.04112047,140.27,140.23,4.0]
[1641784490309,8.20994259,140.32,140.25,4.0]
[1641784490509,8.20994259,140.32,140.25,5.687]
[1641784490709,8.20994259,140.32,140.25,9.687]
[1641784491409,8.20994259,140.32,140.25,5.687]
[1641784491810,4.04012292,140.31,140.26,2.64460754]
[1641784492012,27.66479,140.3,140.26,2.64460754]
[1641784493217,33.36713072,140.3,140.25,2.64460754]
[1641784493614,4.04057694,140.29,140.24,2.64460754]
[1641784497615,13.01957694,140.29,140.24,2.64460754]
[1641784498516,8.979,140.29,140.24,2.64460754]
[1641784498716,4.04074674,140.28,140.24,2.64460754]
[1641784500117,4.04074674,140.29,140.24,2.64460754]
[1641784501519,5.70325571,140.28,140.24,2.64460754]
[1641784502220,4.04074674,140.27,140.24,2.64460754]
[1641784502420,31.70553674,140.27,140.24,2.64460754]
[1641784503021,27.66479,140.27,140.24,2.64460754]
[1641784503422,37.04379,140.27,140.24,2.64460754]
[1641784505322,37.04379,140.27,140.24,6.64460754]
[1641784505724,37.04379,140.27,140.25,2.64460754]
[1641784505922,9.379,140.27,140.25,2.64460754]
[1641784506122,34.50745764,140.3,140.25,2.64460754]
[1641784506522,34.50745764,140.3,140.25,5.09316312]
[1641784506722,4.04039409,140.29,140.25,5.09316312]
[1641784507123,4.04039409,140.29,140.26,2.64460754]
[1641784507926,4.04039409,140.29,140.26,9.43160754]
[1641784508626,4.04039409,140.29,140.27,2.64460754]
[1641784510732,4.04039409,140.29,140.26,2.64460754]
[1641784511932,9.74324759,140.29,140.26,2.64460754]
[1641784512331,27.66479,140.27,140.26,2.64460754]
[1641784513536,33.36808013,140.27,140.26,2.64460754]
[1641784516735,37.40891971,140.27,140.26,2.64460754]
[1641784517939,31.70562958,140.27,140.26,2.64460754]
[1641784518938,27.66479,140.27,140.26,2.64460754]
[1641784519737,31.70559113,140.27,140.26,2.64460754]
[1641784522241,31.70559113,140.27,140.26,5.1015626]
[1641784522443,27.66479,140.27,140.26,2.45695506]
[1641784522642,27.66479,140.27,140.25,2.45695506]
[1641784522844,27.66479,140.27,140.26,2.64460754]
[1641784523343,27.66479,140.27,140.26,5.1015626]
[1641784525248,13.97202937,140.3,140.26,5.1015626]
[1641784525848,4.04069234,140.29,140.27,2.64460754]
[1641784526050,4.04069234,140.29,140.27,5.1015626]
[1641784526548,4.04069234,140.29,140.28,2.45695506]
[1641784526749,4.04069234,140.29,140.28,5.1015626]
[1641784526950,59.37027234,140.29,140.28,5.1015626]
[1641784529650,65.0729931,140.29,140.28,5.1015626]
[1641784530550,65.0729931,140.29,140.28,2.64460754]
[1641784531153,5.70288602,140.28,140.26,2.64460754]
[1641784531554,4.04069234,140.27,140.26,2.64460754]
[1641784531955,5.70288602,140.28,140.26,2.64460754]
[1641784533958,4.04079596,140.27,140.26,2.64460754]
[1641784535158,5.70431116,140.25,140.22,44.23662241]
[1641784535359,4.0,140.23,140.22,44.23662241]
[1641784535558,18.30206216,140.23,140.22,44.23662241]
[1641784536458,8.597,140.23,140.22,38.53122683]
[1641784536658,12.63975643,140.23,140.22,41.23490765]
[1641784537159,67.96933643,140.23,140.22,38.53122683]
[1641784537361,71.96933643,140.23,140.22,38.53122683]
[1641784539162,74.54880632,140.23,140.22,38.53122683]
[1641784541963,19.21922632,140.23,140.22,38.53122683]
[1641784542763,19.21922632,140.23,140.22,17.87822683]
[1641784543164,19.21922632,140.23,140.21,2.44510061]
[1641784543363,4.0,140.22,140.21,2.44510061]
[1641784543564,8.04275643,140.22,140.21,2.44510061]
[1641784545065,14.88937157,140.22,140.21,2.44510061]
[1641784545567,22.40337157,140.22,140.21,2.44510061]
[1641784547368,4.40222167,140.21,140.18,60.55758961]
[1641784547568,14.88937157,140.22,140.18,60.55758961]
[1641784547768,4.0,140.21,140.18,60.55758961]
[1641784548167,4.04275643,140.2,140.19,2.70415143]
[1641784548369,11.17720512,140.2,140.19,2.70415143]
[1641784549369,57.90904989,140.23,140.19,2.70415143]
[1641784549570,57.90904989,140.23,140.19,8.262]
[1641784550874,4.04257098,140.22,140.2,3.87489231]
[1641784551775,4.04257098,140.22,140.17,3.87489231]
[1641784553277,4.04257098,140.22,140.17,47.68819231]
[1641784553776,4.04257098,140.22,140.18,3.87489231]
[1641784554177,7.13444869,140.2,140.18,3.87489231]
[1641784554378,16.39644869,140.2,140.18,3.87489231]
[1641784554782,4.04257098,140.19,140.18,3.87489231]
[1641784555380,31.70736098,140.19,140.15,3.87489231]
[1641784555780,4.04257098,140.18,140.15,3.87489231]
[1641784561286,4.0,140.16,140.06,26.32168231]
[1641784561485,27.66479,140.09,140.05,50.06649864]
[1641784561684,36.42679,140.09,140.05,44.3545]
[1641784562085,36.42679,140.09,140.06,2.44336112]
[1641784562486,36.42679,140.09,140.07,2.74117498]
[1641784562686,27.66479,140.09,140.07,2.74117498]
[1641784562888,27.66479,140.09,140.07,10.12817498]
[1641784563489,27.66479,140.09,140.08,2.74117498]
[1641784563690,27.66479,140.09,140.08,5.1845361]
[1641784565791,37.42118835,140.09,140.08,5.1845361]
[1641784565991,48.56098558,140.09,140.08,5.1845361]
[1641784566191,54.27200649,140.09,140.08,5.1845361]
[1641784566791,50.27200649,140.09,140.08,5.1845361]
[1641784566992,54.27200649,140.09,140.08,5.1845361]
[1641784567395,48.56134849,140.09,140.08,5.1845361]
[1641784568094,0.52682233,140.08,140.04,43.6355]
[1641784568492,51.04032758,140.09,140.04,43.6355]
[1641784568693,46.99458723,140.09,140.04,43.6355]
[1641784569494,27.66479,140.05,140.04,43.6355]
[1641784569693,27.66479,140.05,140.03,15.08027024]
[1641784570699,36.76779,140.05,140.03,15.08027024]
[1641784571295,4.0,140.04,140.03,15.08027024]
[1641784571495,31.66479,140.04,140.03,15.08027024]
[1641784571895,35.71225809,140.04,140.03,15.08027024]
[1641784572701,35.71225809,140.04,140.03,9.08027024]
[1641784572901,42.85511523,140.04,139.97,40.03911844]
[1641784573102,4.0,140.01,139.97,40.03911844]
[1641784573303,9.998,140.01,139.97,40.03911844]
[1641784573503,27.66479,139.98,139.97,40.03911844]
[1641784573704,41.38194818,139.98,139.97,40.03911844]
[1641784580314,45.43058529,139.98,139.97,40.03911844]
[1641784581517,47.09736353,139.98,139.97,40.03911844]
[1641784583217,41.38220535,139.98,139.97,40.03911844]
[1641784583617,6.85662671,140.02,139.97,40.03911844]
[1641784583820,6.85662671,140.02,139.97,48.22811844]
[1641784584019,4.04786841,140.01,139.97,48.22811844]
[1641784584822,4.04786841,140.01,139.98,2.16813076]
[1641784585625,4.04786841,140.01,139.99,4.0]
[1641784585825,8.22576042,140.05,140.0,4.0]
[1641784586024,8.22576042,140.05,140.0,7.323]